fUST/lending_fUST_20250819
["ID","MTS","AMOUNT","RATE_DAILY","PERIOD"]
[380198963,1755606652848,-151.0,0.00019452,2]
[380198964,1755606652858,-480.0,0.00019452,2]
[380198965,1755606652867,-480.0,0.00019452,2]
[380198966,1755606652877,-481.63458252,0.00019452,2]
[380198967,1755606652886,-480.0,0.00019452,2]
[380198968,1755606652895,-480.0,0.00019452,2]
[380198969,1755606652904,-740.67,0.00019452,2]
[380198970,1755606652913,-480.0,0.00019452,2]
[380198971,1755606652923,-480.0,0.00019452,2]
[380198972,1755606652932,-382.17539499,0.00019452,2]
[380198973,1755606652941,-480.0,0.00019452,2]
[380198974,1755606652951,-480.0,0.00019452,2]
[380198975,1755606652960,-480.0,0.00019452,2]
[380198976,1755606652970,-2744.94,0.00019452,2]
[380198977,1755606652979,-480.0,0.00019452,2]
[380198978,1755606652989,-480.0,0.00019452,2]
[380198979,1755606652998,-480.0,0.00019452,2]
[380198980,1755606653007,-480.0,0.00019452,2]
[380198981,1755606653017,-480.0,0.00019452,2]
[380198982,1755606653027,-480.0,0.00019452,2]
[380198983,1755606653037,-338.74575135,0.00019452,2]
[380198984,1755606653046,-480.0,0.00019452,2]
[380198985,1755606653056,-6851.78,0.00019452,2]
[380198986,1755606653066,-480.0,0.00019452,2]
[380198987,1755606653076,-480.0,0.00019452,2]
[380198988,1755606653087,-462.77364927,0.00019452,2]
[380198989,1755606653097,-676.37,0.00019452,2]
[380198990,1755606653107,-482.880756,0.00019452,2]
[380198991,1755606653117,-482.880756,0.00019452,2]
[380198992,1755606653127,-480.0,0.00019452,2]
[380198993,1755606653137,-482.880756,0.00019452,2]
[380198994,1755606653147,-480.0,0.00019452,2]
[380198995,1755606653156,-482.880756,0.00019452,2]
[380198996,1755606653167,-480.0,0.00019452,2]
[380198997,1755606653180,-480.0,0.00019452,2]
[380198998,1755606653190,-198.79811,0.00019452,2]
[380198999,1755606653199,-198.79811,0.00019452,2]
[380199000,1755606653208,-480.0,0.00019452,2]
[380199001,1755606653218,-731.95,0.00019452,2]
[380199002,1755606653228,-480.0,0.00019452,2]
[380199003,1755606653238,-198.79811,0.00019452,2]
[380199004,1755606653250,-480.0,0.00019452,2]
[380199005,1755606653259,-198.79811,0.00019452,2]
[380199006,1755606653269,-480.0,0.00019452,2]
[380199007,1755606653278,-480.0,0.00019452,2]
[380199008,1755606653287,-480.0,0.00019452,2]
[380199009,1755606653297,-223.019689,0.00019452,2]
[380199010,1755606653306,-480.0,0.00019452,2]
[380199011,1755606653316,-480.0,0.00019452,2]
[380199012,1755606653326,-480.0,0.00019452,2]
[380199013,1755606653337,-480.0,0.00019452,2]
[380199014,1755606653346,-480.0,0.00019452,2]
[380199015,1755606653356,-152.087474,0.00019452,2]
[380199016,1755606653366,-152.087474,0.00019452,2]
[380199017,1755606653375,-490.88,0.00019452,2]
[380199018,1755606653384,-480.0,0.00019452,2]
[380199019,1755606653394,-480.0,0.00019452,2]
[380199020,1755606653403,-152.087474,0.00019452,2]
[380199021,1755606653413,-595.1,0.00019452,2]
[380199022,1755606653513,-152.087474,0.00019452,2]
[380199023,1755606653523,-151.0,0.00019452,2]
[380199024,1755606653532,-151.0,0.00019452,2]
[380199025,1755606653542,-151.0,0.00019452,2]
[380199026,1755606653551,-151.0,0.00019452,2]
[380199027,1755606653560,-480.0,0.00019452,2]
[380199028,1755606653569,-480.0,0.00019452,2]
[380199029,1755606653579,-480.0,0.00019452,2]
[380199030,1755606653590,-195.113254,0.00019452,2]
[380199031,1755606653599,-195.113254,0.00019452,2]
[380199032,1755606653609,-586.23863699,0.00019452,2]
[380199033,1755606653618,-480.0,0.00019452,2]
[380199034,1755606653627,-466.48896139,0.00019452,2]
[380199035,1755606653637,-464.18551693,0.00019452,2]
[380199036,1755606653646,-369.87757234,0.00019452,2]
[380199037,1755606653656,-195.113254,0.00019452,2]
[380199038,1755606653666,-195.113254,0.00019452,2]
[380199039,1755606653676,-462.1620668,0.00019452,2]
[380199040,1755606653686,-461.03374984,0.00019452,2]
[380199041,1755606653695,-395.46918124,0.00019452,2]
[380199042,1755606653704,-151.0,0.00019452,2]
[380199043,1755606653713,-151.0,0.00019452,2]
[380199044,1755606653723,-493.62,0.00019452,2]
[380199045,1755606653732,-480.0,0.00019452,2]
[380199046,1755606653741,-480.0,0.00019452,2]
[380199047,1755606653750,-480.0,0.00019452,2]
[380199048,1755606653760,-2671.17,0.00019452,2]
[380199049,1755606653769,-500.0,0.00019452,2]
[380199050,1755606653779,-480.94861762,0.00019452,2]
[380199051,1755606653788,-480.0,0.00019452,2]
[380199052,1755606653797,-826.15,0.00019452,2]
[380199053,1755606653807,-480.0,0.00019452,2]
[380199054,1755606653816,-480.0,0.00019452,2]
[380199055,1755606653825,-2025.37,0.00019452,2]
[380199056,1755606653835,-1110.34,0.00019452,2]
[380199057,1755606653844,-480.0,0.00019452,2]
[380199058,1755606653854,-480.0,0.00019452,2]
[380199059,1755606653864,-480.0,0.00019452,2]
[380199060,1755606653873,-151.429622,0.00019452,2]
[380199061,1755606653883,-151.0,0.00019452,2]
[380199062,1755606653892,-151.0,0.00019452,2]
[380199063,1755606653902,-421.36846241,0.00019452,2]
[380199064,1755606653911,-480.0,0.00019452,2]
[380199065,1755606653921,-480.0,0.00019452,2]
[380199066,1755606653930,-480.0,0.00019452,2]
[380199067,1755606653940,-151.0,0.00019452,2]
[380199068,1755606653949,-151.0,0.00019452,2]
[380199069,1755606653959,-209.63811212,0.00019452,2]
[380199070,1755606653968,-1463.26,0.00019452,2]
[380199071,1755606653977,-460.0,0.00019452,2]
[380199072,1755606653987,-480.0,0.00019452,2]
[380199073,1755606653996,-480.0,0.00019452,2]
[380199074,1755606654005,-151.0,0.00019452,2]
[380199075,1755606654015,-421.85644383,0.00019452,2]
[380199076,1755606654024,-652.34,0.00019452,2]
[380199077,1755606654034,-151.0,0.00019452,2]
[380199078,1755606654044,-480.0,0.00019452,2]
[380199079,1755606654053,-480.0,0.00019452,2]
[380199080,1755606654063,-480.0,0.00019452,2]
[380199081,1755606654072,-480.0,0.00019452,2]
[380199082,1755606654082,-480.0,0.00019452,2]
[380199083,1755606654093,-426.62996468,0.00019452,2]
[380199084,1755606654102,-480.0,0.00019452,2]
[380199085,1755606654112,-480.0,0.00019452,2]
[380199086,1755606654123,-422.52932423,0.00019452,2]
[380199087,1755606654132,-480.0,0.00019452,2]
[380199088,1755606654141,-480.0,0.00019452,2]
[380199089,1755606654151,-488.04,0.00019452,2]
[380199090,1755606654161,-480.0,0.00019452,2]
[380199091,1755606654172,-480.0,0.00019452,2]
[380199092,1755606654184,-480.0,0.00019452,2]
[380199093,1755606654193,-554.67,0.00019452,2]
[380199094,1755606654202,-480.0,0.00019452,2]
[380199095,1755606654214,-480.0,0.00019452,2]
[380199096,1755606654224,-480.0,0.00019452,2]
[380199097,1755606654233,-480.0,0.00019452,2]
[380199098,1755606654243,-1102.08,0.00019452,2]
[380199099,1755606654254,-480.0,0.00019452,2]
[380199100,1755606654263,-480.0,0.00019452,2]
[380199101,1755606654273,-480.0,0.00019452,2]
[380199102,1755606654282,-604.1,0.00019452,2]
[380199103,1755606654292,-480.0,0.00019452,2]
[380199104,1755606654302,-480.0,0.00019452,2]
[380199105,1755606654312,-480.0,0.00019452,2]
[380199106,1755606654321,-151.0,0.00019452,2]
[380199107,1755606654331,-151.0,0.00019452,2]
[380199108,1755606654343,-480.0,0.00019452,2]
[380199109,1755606654353,-480.0,0.00019452,2]
[380199110,1755606654363,-480.0,0.00019452,2]
[380199111,1755606654373,-480.0,0.00019452,2]
[380199112,1755606654383,-1056.9,0.00019452,2]
[380199113,1755606654392,-480.0,0.00019452,2]
[380199114,1755606654402,-480.0,0.00019452,2]
[380199115,1755606654411,-480.0,0.00019452,2]
[380199116,1755606654421,-1149.67,0.00019452,2]
[380199117,1755606654430,-480.0,0.00019452,2]
[380199118,1755606654440,-1358.84,0.00019452,2]
[380199119,1755606654450,-480.0,0.00019452,2]
[380199120,1755606654459,-881.95,0.00019452,2]
[380199121,1755606654468,-480.0,0.00019452,2]
[380199122,1755606654478,-480.0,0.00019452,2]
[380199123,1755606654487,-899.0,0.00019452,2]
[380199124,1755606654497,-445.44377966,0.00019452,2]
[380199125,1755606654506,-584.73587073,0.00019452,2]
[380199126,1755606654515,-480.0,0.00019452,2]
[380199127,1755606654525,-480.0,0.00019452,2]
[380199128,1755606654534,-480.0,0.00019452,2]
[380199129,1755606654543,-1339.97,0.00019452,2]
[380199130,1755606654553,-480.0,0.00019452,2]
[380199131,1755606654563,-480.0,0.00019452,2]
[380199132,1755606654572,-480.0,0.00019452,2]
[380199133,1755606654581,-3307.83,0.00019452,2]
[380199134,1755606654591,-480.0,0.00019452,2]
[380199135,1755606654601,-3318.85,0.00019452,2]
[380199136,1755606654610,-480.0,0.00019452,2]
[380199137,1755606654619,-480.0,0.00019452,2]
[380199138,1755606654628,-480.0,0.00019452,2]
[380199139,1755606654637,-309.02954584,0.00019452,2]
[380199140,1755606654647,-576.12667986,0.00019452,2]
[380199141,1755606654663,-480.0,0.00019452,2]
[380199142,1755606654673,-572.78,0.00019452,2]
[380199143,1755606654683,-480.0,0.00019452,2]
[380199144,1755606654693,-480.0,0.00019452,2]
[380199145,1755606654702,-925.96,0.00019452,2]
[380199146,1755606654712,-461.02696222,0.00019452,2]
[380199147,1755606654721,-480.0,0.00019452,2]
[380199148,1755606654729,-480.0,0.00019452,2]
[380199149,1755606654738,-480.0,0.00019452,2]
[380199150,1755606654748,-3696.94,0.00019452,2]
[380199151,1755606654757,-480.0,0.00019452,2]
[380199152,1755606654766,-480.0,0.00019452,2]
[380199153,1755606654775,-480.0,0.00019452,2]
[380199154,1755606654784,-5536.72,0.00019452,2]
[380199155,1755606654793,-480.0,0.00019452,2]
[380199156,1755606654803,-480.0,0.00019452,2]
[380199157,1755606654812,-480.0,0.00019452,2]
[380199158,1755606654821,-480.0,0.00019452,2]
[380199159,1755606654830,-668.52,0.00019452,2]
[380199160,1755606654840,-480.0,0.00019452,2]
[380199161,1755606654849,-480.0,0.00019452,2]
[380199162,1755606654858,-151.0,0.00019452,2]
[380199163,1755606654867,-1954.8,0.00019452,2]
[380199164,1755606654877,-151.0,0.00019452,2]
[380199165,1755606654886,-151.0,0.00019452,2]
[380199166,1755606654895,-480.0,0.00019452,2]
[380199167,1755606654904,-461.00428302,0.00019452,2]
[380199168,1755606654914,-480.0,0.00019452,2]
[380199169,1755606654923,-625.13,0.00019452,2]
[380199170,1755606654932,-480.0,0.00019452,2]
[380199171,1755606654941,-151.0,0.00019452,2]
[380199172,1755606654950,-151.0,0.00019452,2]
[380199173,1755606654960,-151.0,0.00019452,2]
[380199174,1755606654969,-1385.74,0.00019452,2]
[380199175,1755606654979,-480.0,0.00019452,2]
[380199176,1755606654988,-613.10300382,0.00019452,2]
[380199177,1755606654999,-480.0,0.00019452,2]
[380199178,1755606655009,-480.0,0.00019452,2]
[380199179,1755606655018,-480.0,0.00019452,2]
[380199180,1755606655028,-480.0,0.00019452,2]
[380199181,1755606655037,-480.0,0.00019452,2]
[380199182,1755606655047,-480.0,0.00019452,2]
[380199183,1755606655056,-958.56,0.00019452,2]
[380199184,1755606655065,-480.0,0.00019452,2]
[380199185,1755606655074,-480.0,0.00019452,2]
[380199186,1755606655084,-480.0,0.00019452,2]
[380199187,1755606655093,-480.0,0.00019452,2]
[380199188,1755606655103,-539.78,0.00019452,2]
[380199189,1755606655112,-480.0,0.00019452,2]
[380199190,1755606655120,-151.0,0.00019452,2]
[380199191,1755606655130,-480.0,0.00019452,2]
[380199192,1755606655139,-151.0,0.00019452,2]
[380199193,1755606655148,-151.0,0.00019452,2]
[380199194,1755606655157,-480.0,0.00019452,2]
[380199195,1755606655167,-480.0,0.00019452,2]
[380199196,1755606655180,-151.0,0.00019452,2]
[380199197,1755606655189,-264.180656,0.00019452,2]
[380199198,1755606655198,-480.0,0.00019452,2]
[380199199,1755606655207,-1597.5,0.00019452,2]
[380199200,1755606655216,-480.0,0.00019452,2]
[380199201,1755606655225,-480.0,0.00019452,2]
[380199202,1755606655234,-480.0,0.00019452,2]
[380199203,1755606655244,-480.0,0.00019452,2]
[380199204,1755606655253,-480.0,0.00019452,2]
[380199205,1755606655263,-2607.08,0.00019452,2]
[380199206,1755606655273,-1677.17,0.00019452,2]
[380199207,1755606655282,-679.76,0.00019452,2]
[380199208,1755606655292,-2143.46,0.00019452,2]
[380199209,1755606655301,-480.0,0.00019452,2]
[380199210,1755606655311,-151.0,0.00019452,2]
[380199211,1755606655320,-1373.1,0.00019452,2]
[380199212,1755606655329,-151.0,0.00019452,2]
[380199213,1755606655340,-480.0,0.00019452,2]
[380199214,1755606655350,-480.0,0.00019452,2]
[380199215,1755606655359,-741.16,0.00019452,2]
[380199216,1755606655368,-1000.0,0.00019452,2]
[380199217,1755606655378,-596.33609991,0.00019452,2]
[380199218,1755606655387,-1000.0,0.00019452,2]
[380199219,1755606655396,-1000.0,0.00019452,2]
[380199220,1755606655406,-1000.0,0.00019452,2]
[380199221,1755606655415,-1000.0,0.00019452,2]
[380199222,1755606655425,-1000.0,0.00019452,2]
[380199223,1755606655435,-1000.0,0.00019452,2]
[380199224,1755606655445,-480.0,0.00019452,2]
[380199225,1755606655454,-1000.0,0.00019452,2]
[380199226,1755606655463,-1000.0,0.00019452,2]
[380199227,1755606655473,-1000.0,0.00019452,2]
[380199228,1755606655482,-480.0,0.00019452,2]
[380199229,1755606655491,-1000.0,0.00019452,2]
[380199230,1755606655501,-1287.57,0.00019452,2]
[380199231,1755606655510,-1000.0,0.00019452,2]
[380199232,1755606655519,-289.19531519,0.00019452,2]
[380199233,1755606655529,-1000.0,0.00019452,2]
[380199234,1755606655538,-1000.0,0.00019452,2]
[380199235,1755606655547,-1078.73,0.00019452,2]
[380199236,1755606655557,-1000.0,0.00019452,2]
[380199237,1755606655566,-1000.0,0.00019452,2]
[380199238,1755606655576,-1427.51,0.00019452,2]
[380199239,1755606655586,-1000.0,0.00019452,2]
[380199240,1755606655596,-1000.0,0.00019452,2]
[380199241,1755606655605,-480.0,0.00019452,2]
[380199242,1755606655614,-1000.0,0.00019452,2]
[380199243,1755606655623,-1000.0,0.00019452,2]
[380199244,1755606655633,-1000.0,0.00019452,2]
[380199245,1755606655642,-1000.0,0.00019452,2]
[380199246,1755606655652,-1000.0,0.00019452,2]
[380199247,1755606655661,-1000.0,0.00019452,2]
[380199248,1755606655670,-153.952636,0.00019452,2]
[380199249,1755606655679,-1000.0,0.00019452,2]
[380199250,1755606655688,-153.952636,0.00019452,2]
[380199251,1755606655698,-1000.0,0.00019452,2]
[380199252,1755606655708,-153.952636,0.00019452,2]
[380199253,1755606655717,-1000.0,0.00019452,2]
[380199254,1755606655726,-151.0,0.00019452,2]
[380199255,1755606655736,-1000.0,0.00019452,2]
[380199256,1755606655745,-151.0,0.00019452,2]
[380199257,1755606655754,-1000.0,0.00019452,2]
[380199258,1755606655763,-183.8074,0.00019452,2]
[380199259,1755606655773,-1000.0,0.00019452,2]
[380199260,1755606655782,-1000.0,0.00019452,2]
[380199261,1755606655791,-481.07710183,0.00019452,2]
[380199262,1755606655801,-1000.0,0.00019452,2]
[380199263,1755606655810,-439.844718,0.00019452,2]
[380199264,1755606655819,-153.952636,0.00019452,2]
[380199265,1755606655828,-153.952636,0.00019452,2]
[380199266,1755606655837,-356.542237,0.00019452,2]
[380199267,1755606655847,-153.952636,0.00019452,2]
[380199268,1755606655856,-356.542237,0.00019452,2]
[380199269,1755606655866,-480.0,0.00019452,2]
[380199270,1755606655875,-356.542237,0.00019452,2]
[380199271,1755606655884,-1086.5,0.00019452,2]
[380199272,1755606655894,-480.0,0.00019452,2]
[380199273,1755606655903,-1526.24,0.00019452,2]
[380199274,1755606655912,-356.542237,0.00019452,2]
[380199275,1755606655922,-772.12,0.00019452,2]
[380199276,1755606655931,-356.542237,0.00019452,2]
[380199277,1755606655940,-480.0,0.00019452,2]
[380199278,1755606655949,-356.542237,0.00019452,2]
[380199279,1755606655959,-480.0,0.00019452,2]
[380199280,1755606655968,-480.0,0.00019452,2]
[380199281,1755606655978,-708.0,0.00019452,2]
[380199282,1755606655987,-480.0,0.00019452,2]
[380199283,1755606655997,-151.0,0.00019452,2]
[380199284,1755606656008,-151.0,0.00019452,2]
[380199285,1755606656017,-151.0,0.00019452,2]
[380199286,1755606656026,-480.0,0.00019452,2]
[380199287,1755606656035,-151.0,0.00019452,2]
[380199288,1755606656045,-480.0,0.00019452,2]
[380199289,1755606656055,-480.0,0.00019452,2]
[380199290,1755606656064,-480.0,0.00019452,2]
[380199291,1755606656074,-891.06,0.00019452,2]
[380199292,1755606656083,-480.0,0.00019452,2]
[380199293,1755606656094,-151.0,0.00019452,2]
[380199294,1755606656209,-237.24497821,0.00019452,2]
[380199295,1755606656219,-480.0,0.00019452,2]
[380199296,1755606656229,-480.0,0.00019452,2]
[380199297,1755606656239,-480.0,0.00019452,2]
[380199298,1755606656254,-480.0,0.00019452,2]
[380199299,1755606656263,-480.0,0.00019452,2]
[380199300,1755606656273,-151.0,0.00019452,2]
[380199301,1755606656283,-480.0,0.00019452,2]
[380199302,1755606656292,-151.0,0.00019452,2]
[380199303,1755606656302,-286.696422,0.00019452,2]
[380199304,1755606656312,-3354.34,0.00019452,2]
[380199305,1755606656321,-480.0,0.00019452,2]
[380199306,1755606656330,-404.34071613,0.00019452,2]
[380199307,1755606656340,-480.0,0.00019452,2]
[380199308,1755606656350,-480.0,0.00019452,2]
[380199309,1755606656360,-151.0,0.00019452,2]
[380199310,1755606656369,-480.0,0.00019452,2]
[380199311,1755606656379,-151.0,0.00019452,2]
[380199312,1755606656388,-480.0,0.00019452,2]
[380199313,1755606656397,-582.62824431,0.00019452,2]
[380199314,1755606656406,-480.0,0.00019452,2]
[380199315,1755606656416,-990.79,0.00019452,2]
[380199316,1755606656425,-480.0,0.00019452,2]
[380199317,1755606656434,-480.0,0.00019452,2]
[380199318,1755606656443,-480.0,0.00019452,2]
[380199319,1755606656453,-480.0,0.00019452,2]
[380199320,1755606656464,-480.0,0.00019452,2]
[380199321,1755606656473,-480.0,0.00019452,2]
[380199322,1755606656483,-480.0,0.00019452,2]
[380199323,1755606656492,-480.0,0.00019452,2]
[380199324,1755606656501,-480.0,0.00019452,2]
[380199325,1755606656510,-151.0,0.00019452,2]
[380199326,1755606656519,-172.609599,0.00019452,2]
[380199327,1755606656529,-1149.59,0.00019452,2]
[380199328,1755606656538,-480.0,0.00019452,2]
[380199329,1755606656552,-500.0,0.00019452,2]
[380199330,1755606656562,-480.0,0.00019452,2]
[380199331,1755606656572,-480.0,0.00019452,2]
[380199332,1755606656592,-480.0,0.00019452,2]
[380199333,1755606656605,-151.0,0.00019452,2]
[380199334,1755606656614,-151.0,0.00019452,2]
[380199335,1755606656624,-151.0,0.00019452,2]
[380199336,1755606656633,-480.0,0.00019452,2]
[380199337,1755606656643,-2624.4,0.00019452,2]
[380199338,1755606656652,-9959.75,0.00019452,2]
[380199339,1755606656662,-480.0,0.00019452,2]
[380199340,1755606656672,-480.0,0.00019452,2]
[380199341,1755606656681,-480.0,0.00019452,2]
[380199342,1755606656690,-151.0,0.00019452,2]
[380199343,1755606656699,-480.0,0.00019452,2]
[380199344,1755606656708,-151.0,0.00019452,2]
[380199345,1755606656717,-480.0,0.00019452,2]
[380199346,1755606656727,-151.0,0.00019452,2]
[380199347,1755606656736,-151.0,0.00019452,2]
[380199348,1755606656746,-209.527777,0.00019452,2]
[380199349,1755606656755,-615.12,0.00019452,2]
[380199350,1755606656765,-480.0,0.00019452,2]
[380199351,1755606656774,-1142.25,0.00019452,2]
[380199352,1755606656783,-480.0,0.00019452,2]
[380199353,1755606656792,-151.0,0.00019452,2]
[380199354,1755606656802,-151.0,0.00019452,2]
[380199355,1755606656811,-480.0,0.00019452,2]
[380199356,1755606656821,-480.0,0.00019452,2]
[380199357,1755606656829,-151.0,0.00019452,2]
[380199358,1755606656839,-2872.66,0.00019452,2]
[380199359,1755606656849,-480.0,0.00019452,2]
[380199360,1755606656858,-480.0,0.00019452,2]
[380199361,1755606656867,-1200.41,0.00019452,2]
[380199362,1755606656877,-480.0,0.00019452,2]
[380199363,1755606656886,-480.0,0.00019452,2]
[380199364,1755606656895,-480.0,0.00019452,2]
[380199365,1755606656904,-151.0,0.00019452,2]
[380199366,1755606656913,-480.0,0.00019452,2]
[380199367,1755606656922,-151.0,0.00019452,2]
[380199368,1755606656931,-9859.29,0.00019452,2]
[380199369,1755606656941,-200.910113,0.00019452,2]
[380199370,1755606656950,-480.0,0.00019452,2]
[380199371,1755606656959,-209.62133207,0.00019452,2]
[380199372,1755606656968,-481.31505185,0.00019452,2]
[380199373,1755606656978,-480.0,0.00019452,2]
[380199374,1755606656987,-480.0,0.00019452,2]
[380199375,1755606656996,-480.0,0.00019452,2]
[380199376,1755606657005,-500.0,0.00019473,2]
[380199377,1755606657015,-500.0,0.00019473,2]
[380199378,1755606657024,-500.0,0.00019473,2]
[380199379,1755606657033,-500.0,0.00019473,2]
[380199380,1755606657043,-500.0,0.00019473,2]
[380199381,1755606657052,-500.0,0.00019473,2]
[380199382,1755606657061,-579.67881727,0.00019489,2]
[380199383,1755606657071,-151.0,0.000195,2]
[380199384,1755606657080,-151.0,0.000195,2]
[380199385,1755606657089,-242.482377,0.000195,2]
[380199386,1755606657098,-242.482377,0.000195,2]
[380199387,1755606657107,-151.0,0.000195,2]
[380199388,1755606657116,-151.0,0.000195,2]
[380199389,1755606657125,-151.0,0.000195,2]
[380199390,1755606657134,-151.755237,0.000195,2]
[380199391,1755606657144,-1000.000001,0.000195,2]
[380199392,1755606657153,-160.0,0.00019502,2]
[380199393,1755606657162,-160.0,0.00019502,2]
[380199394,1755606657174,-528.6845513,0.00019502,2]
[380199395,1755606657184,-160.0,0.00019502,2]
[380199396,1755606657193,-160.0,0.00019502,2]
[380199397,1755606657202,-12685.85563623,0.00019503,2]
[380199398,1755606657216,-160.0,0.00019503,2]
[380199399,1755606657225,-160.0,0.00019503,2]
[380199400,1755606657235,-215.79176414,0.00019503,2]
[380199401,1755606657244,-160.0,0.00019503,2]
[380199402,1755606657255,-216.8835046,0.00019503,2]
[380199403,1755606657264,-232.21311493,0.00019503,2]
[380199404,1755606657273,-160.0,0.00019503,2]
[380199405,1755606657283,-417.15472785,0.00019503,2]
[380199406,1755606657292,-375.88899365,0.00019503,2]
[380199407,1755606657301,-843.93972674,0.00019503,2]
[380199408,1755606657310,-156.029089,0.00019528,4]
[380199409,1755606657320,-800.0,0.00019528,2]
[380199410,1755606657329,-800.0,0.0001955,2]
[380199411,1755606657339,-166.25061732,0.00019554,2]
[380199412,1755606657348,-300.0,0.00019561,20]
[380199413,1755606657357,-300.0,0.00019561,20]
[380199414,1755606657367,-300.0,0.00019561,20]
[380199415,1755606657376,-300.0,0.00019561,20]
[380199416,1755606657385,-300.0,0.00019561,20]
[380199417,1755606657394,-300.0,0.00019561,20]
[380199418,1755606657403,-300.0,0.00019561,20]
[380199419,1755606657413,-300.0,0.00019561,20]
[380199420,1755606657422,-300.0,0.00019561,20]
[380199421,1755606657431,-300.0,0.00019561,20]
[380199422,1755606657441,-300.0,0.00019561,20]
[380199423,1755606657450,-300.0,0.00019561,20]
[380199424,1755606657460,-300.0,0.00019561,20]
[380199425,1755606657469,-300.0,0.00019561,20]
[380199426,1755606657478,-300.0,0.00019561,20]
[380199427,1755606657488,-300.0,0.00019561,20]
[380199428,1755606657497,-300.0,0.00019561,20]
[380199429,1755606657506,-300.0,0.00019561,20]
[380199430,1755606657515,-300.0,0.00019561,20]
[380199431,1755606657525,-300.0,0.00019561,20]
[380199432,1755606657536,-600.0,0.00019561,20]
[380199433,1755606657545,-238.15974747,0.00019562,2]
[380199434,1755606657554,-800.0,0.00019578,2]
[380199435,1755606657563,-156.029089,0.000196,4]
[380199436,1755606657572,-800.0,0.00019621,2]
[380199437,1755606657582,-159.43811611,0.00019644,2]
[380199438,1755606657591,-800.0,0.00019695,2]
[380199439,1755606657600,-151.0,0.000197,2]
[380199440,1755606657610,-894.23052102,0.000197,2]
[380199441,1755606657619,-1000.0,0.00019721,2]
[380199442,1755606657628,-500.0,0.00019721,2]
[380199443,1755606657638,-467.9495822,0.00019721,2]
[380199444,1755606657647,-331.54512723,0.00019721,2]
[380199445,1755606657657,-1000.0,0.00019721,2]
[380199446,1755606657667,-1000.0,0.00019721,2]
[380199447,1755606657676,-1000.0,0.00019721,2]
[380199448,1755606657685,-1000.0,0.00019721,2]
[380199449,1755606657695,-1000.0,0.00019721,2]
[380199450,1755606657705,-1000.0,0.00019721,2]
[380199451,1755606657714,-151.0,0.00019721,2]
[380199452,1755606657723,-151.0,0.00019721,2]
[380199453,1755606657732,-151.0,0.00019721,2]
[380199454,1755606657742,-290.170859,0.00019721,2]
[380199455,1755606657752,-151.0,0.00019721,2]
[380199456,1755606657761,-151.0,0.00019721,2]
[380199457,1755606657770,-151.0,0.00019721,2]
[380199458,1755606657780,-151.0,0.00019721,2]
[380199459,1755606657789,-480.0,0.00019726,2]
[380199460,1755606657798,-480.0,0.00019726,2]
[380199461,1755606657807,-480.0,0.00019726,2]
[380199462,1755606657817,-480.0,0.00019726,2]